{"text_format":"3","workbook":"xlsx","n_sheets":3,"sheets":["ToR","Sheet2","Sheet1"],"not_rendered":{"defined_names":38},"read":"whole","date_system":"1900"}

{"sheet":"ToR","index":0,"n_rows":47,"n_cols":9,"rows_kept":47,"merged":[[0,0,0,7],[3,0,3,8],[8,0,8,7],[9,0,9,8],[21,0,21,7],[22,0,22,8],[24,0,24,7],[25,0,25,8],[29,0,29,7],[30,0,30,7],[32,0,32,8],[33,0,33,8],[34,0,34,6],[34,7,34,8],[35,0,35,6],[35,7,35,8],[36,0,36,6],[36,7,36,8],[37,0,37,6],[37,7,37,8],[38,0,38,6],[38,7,38,8],[39,0,39,6],[39,7,39,8],[40,0,40,6],[40,7,40,8],[41,0,41,6],[41,7,41,8],[42,0,42,6],[42,7,42,8],[43,0,43,6],[43,7,43,8],[44,0,44,6],[44,7,44,8],[45,0,45,6],[45,7,45,8],[46,0,46,8]]}
["ITT No. PFRU2-2025-261 Procurement of IT-equipment | ITT № PFRU2-2025-261 Закупівля ІТ-обладнання\nVolume 3 - Terms of Reference (ToR)/Specifications | Розділ 3 - Технічне завдання (ТЗ)/Специфікації"]
[]
["№","Name according to the procurement - Description and Specifications of Item\n|\n(It is allowed to submit analogues for any positions)","Назва згідно закупівлі - Опис і специфікації предмету закупівлі\n|\n(Дозволяється подача аналогів на будь-які позиції)","Order Qty (pc)\n|\nОб'єм замовлення (шт)","Name according to the proposal \n| \nНазва згідно пропозиції","Proposed description & technical specifications (include brand & model (if applicable), etc.) \n|\nПропонований опис і технічні характеристики (включаючи марку та модель(за наявності), тощо)","Delivery time - calendar days (after PO signing) \n|\nТермін поставки - календарні дні (після підписання Договору на поставку)","Unit Price, GBP excl. VAT\n| \nЦіна за од-цю, Фунти Стерлінги без ПДВ","Total Price, GBP excl. VAT\n|\n Загальна ціна, фунтів стерлінгів без ПДВ"]
["LOT 1 (IT equipment and multimedia devices) / ЛОТ 1 (IT-обладнання та мультимедійні пристрої)"]
[1,"Uninterruptible Power Supply (UPS)\n\nTechnical requirements:\nType: Line-interactive; Power: 850 VA / 480 W; Output Voltage: 220 V / 230 V / 240 V; Output Frequency: 50–60 Hz; Interfaces: USB; Number of Output Sockets: 2 x Schuko; Additional: LCD display.","Джерело безперебійного живлення\n\nТехнічні вимоги:\nТип: Лінійно-інтерактивний; Потужність: 850 ВА / 480 Вт; Вихідна напруга: 220 В / 230 В / 240 В; Вихідна частота: 50–60 Гц; Інтерфейси: USB; Кількість вихідних розеток: 2 x Schuko; Додатково: LCD-дисплей.",42,{"$nulls":3},{"v":0,"d":"0.00"},{"$f":"D5*H5","v":{"v":0,"d":"0.00"}}]
[2,"Computer\n\nTechnical requirements:\nProcessor: Intel Core i3-12xx; Graphics Card: Integrated Intel UHD Graphics 730; RAM: 16 GB DDR4 3200 MHz; Storage: SSD 480 GB (M.2 NVMe PCIe); Operating System: Microsoft Windows 11 Pro 64-bit (Ukrainian edition).","Комп'ютер\n\nТехнічні вимоги:\nПроцесор: Intel Core i3-12xx; Відеокарта: вбудована Intel UHD Graphics 730; Оперативна пам'ять: 16 ГБ DDR4 3200 МГц; Накопичувач: SSD 480 ГБ (M.2 NVMe PCIe); Операційна система: Microsoft Windows 11 Pro 64-bit (українська версія).",38,{"$nulls":3},{"v":0,"d":"0.00"},{"v":0,"d":"0.00"}]
[3,"Monitor\n\nTechnical requirements:\nScreen Size: 23.8 inches; Matrix Type: VA or IPS; Resolution: 1920 x 1080 (Full HD); Interfaces: VGA, HDMI; Refresh Rate: 75 Hz.","Монітор\n\nТехнічні вимоги:\nРозмір екрана: 23,8 дюйма; Тип матриці: VA або IPS; Роздільна здатність: 1920 x 1080 (Full HD); Інтерфейси: VGA, HDMI; Частота оновлення: 75 Гц.",41,{"$nulls":3},{"v":0,"d":"0.00"},{"v":0,"d":"0.00"}]
[4,"Tablet\n\nTechnical requirements:\nDisplay: 11\", 2560x1600, MultiTouch; Processor: Octa-core Qualcomm Snapdragon 8 Gen 2; RAM: 8 GB; Internal Storage: 128 GB + microSD; Wireless Interfaces: Wi-Fi, Bluetooth 5.2, 5G; Cameras: Rear dual 13 MP + 6 MP, front 12 MP; Operating System: Android 13.","Планшет\n\nТехнічні вимоги:\nДисплей: 11 дюймів, 2560x1600, MultiTouch; Процесор: восьмиядерний Qualcomm Snapdragon 8 Gen 2; Оперативна пам'ять: 8 ГБ; Внутрішня пам'ять: 128 ГБ + microSD; Бездротові інтерфейси: Wi-Fi, Bluetooth 5.2, 5G; Камери: подвійна основна 13 МП + 6 МП, фронтальна 12 МП; Операційна система: Android 13.",37,{"$nulls":3},{"v":0,"d":"0.00"},{"v":0,"d":"0.00"}]
["Subtotal for LOT 1 | Проміжний підсумок ЛОТ 1",{"$nulls":7},{"$f":"SUM(I5:I8)","v":{"v":0,"d":"0.00"}}]
["LOT 2 (Equipment for video surveillance systems) / ЛОТ 2 (Обладнання для системи відеоспостереження)"]
[1,"Network Video Recorder\n\nTechnical requirements:\nNumber of Channels: 64; IP Camera Support; Video Compression: H.264, H.265; Network Protocols: RTSP; Compatibility: ONVIF; Protection Level: Not lower than IP66; Smart Features: NVR-based analytics, abnormal video detection, intrusion detection, missing/left object detection, video blur detection, vehicle detection, video tampering detection, in/out zone detection, perimeter protection, license plate recognition, face recognition, heatmap, thermal functions; Number of Hard Drives: 16; Video Output: CVBS, HDMI x4, VGA.","Мережевий відеореєстратор\n\nТехнічні вимоги:\nКількість каналів: 64; Підтримка IP-камер; Стиснення відео: H.264, H.265; Мережеві протоколи: RTSP; Сумісність: ONVIF; Рівень захисту: Не нижче IP66; Інтелектуальні функції: аналітика на основі NVR, виявлення аномального відео, виявлення вторгнень, виявлення відсутніх/залишених об'єктів, виявлення розмиття відео, виявлення транспортних засобів, виявлення втручання у відео, виявлення зони входу/виходу, захист периметра, розпізнавання номерних знаків, розпізнавання облич, теплова карта, теплові функції; Кількість жорстких дисків: 16; Відеовихід: CVBS, HDMI x4, VGA.",5,{"$nulls":3},{"v":0,"d":"0.00"},{"$f":"D11*H11","v":{"v":0,"d":"0.00"}}]
[2,"Network Video Recorder\n\nTechnical requirements:\nNumber of Channels: 32; IP Camera Support; Video Compression: H.264, H.265; Network Protocols: RTSP; Compatibility: ONVIF; Protection Level: Not lower than IP66; Smart Features: Face detection, human/vehicle classification; Number of Hard Drives: 4; Video Output: HDMI x2, VGA.","Мережевий відеореєстратор\n\nТехнічні вимоги:\nКількість каналів: 32; Підтримка IP-камер; Стиснення відео: H.264, H.265; Мережеві протоколи: RTSP; Сумісність: ONVIF; Рівень захисту: Не нижче IP66; Розумні функції: розпізнавання обличчя, класифікація людини/транспортного засобу; кількість жорстких дисків - 4; Відеовихід: HDMI x2, VGA.",9,{"$nulls":3},{"v":0,"d":"0.00"},{"$f":"D12*H12","v":{"v":0,"d":"0.00"}}]
[3,"Hard Disk Drive (HDD)\n\nTechnical requirements:\nCapacity: 10 TB; Type: HDD; Series: For surveillance systems.","Жорсткий диск (HDD)\n\nТехнічні вимоги:\nЄмність - 10ТВ; Тип: HDD; Серія: для систем спостереження.",30,{"$nulls":3},{"v":0,"d":"0.00"},{"$f":"D13*H13","v":{"v":0,"d":"0.00"}}]
[4,"IP Camera\n\nTechnical requirements:\nResolution: 4 MP (2560x1440); Focal Length: 2.8 mm; llumination Range: 30 m (IR), 30 m (LED); Video Compression: H.264, H.265; Network Protocols: RTSP; Compatibility: ONVIF; Protection Level: Not lower than IP66; Smart Features: Abnormal video detection, object left/removed detection, line crossing detection, video blur detection, target classification.","IP камера\n\nТехнічні вимоги:\nРоздільна здатність: 4МП (2560х1440); Фокусна відстань: 2.8 мм; Дальність освітлення: 30м (IR), 30 м (LED); Стиснення відео:  H.264, H.265; Мережеві протоколи: RTSP; Сумісність: ONVIF; Рівень захисту: Не нижче IP66; Розумні функції: Виявлення аномального відео, виявлення залишеного/видаленого об'єкта, виявлення перетину лінії, виявлення розмиття відео, класифікація цілей.",96,{"$nulls":3},{"v":0,"d":"0.00"},{"v":0,"d":"0.00"}]
[4.1,"Junction Box\n\nTechnical requirements:\nType: For IP cameras.","Розподільна коробка\n\nТехнічні вимоги:\nТип: для IP камер.",96,{"$nulls":3},{"v":0,"d":"0.00"},{"v":0,"d":"0.00"}]
[5,"IP Camera\n\nTechnical requirements:\nResolution: 6 MP (3200×1800); Focal Length: 2.8–12 mm (varifocal); Illumination Range: 40 m (LED), 50 m (IR); Video Compression: H.264, H.265; Network Protocols: RTSP; Compatibility: ONVIF; Protection Level: Not lower than IP66; Smart Features: SMD, line crossing detection, video blur detection, in/out zone detection, scene change, target classification.","IP камера\n\nТехнічні вимоги:\nРоздільна здатність: 6МП (3200х1800); Фокусна відстань: 2.8-12 мм (варіфокальна); Дальність освітлення: 40 м (LED), 50 м (IR); Стистнення відео: Н.264, Н.265; Мережеві протоколи:  RTSP; Сумісність: ONVIF; Рівень захисту: не нижче IP66; Розумні функції: SMD, виявлення перетину ліні, виявлення розмиттія відео, виявлення зони входу/виходу, зміна сцени, класифікація цілей.",38,{"$nulls":3},{"v":0,"d":"0.00"},{"v":0,"d":"0.00"}]
[5.1,"Junction Box\n\nTechnical requirements:\nType: For IP cameras.","Розподільна коробка\n\nТехнічні вимоги:\nТип: для IP камер.",38,{"$nulls":3},{"v":0,"d":"0.00"},{"v":0,"d":"0.00"}]
[6,"Switch\n\nTechnical requirements:\nType: Cloud Router Switch; Ports: 48 x PoE+, 4 x SFP+, 2 x QSFP+;  Mounting: Rack-mounted","Комутатор\n\nТехнічні вимоги:\nТип: Хмарний маршрутизатор-комутатор; Порти: 48 x PoE+, 4 x SFP+, 2 x QSFP+; Монтаж: У стійку.",12,{"$nulls":3},{"v":0,"d":"0.00"},{"v":0,"d":"0.00"}]
[7,"Switch\n\nTechnical requirements:\nType: Cloud Router Switch; Ports: 48 x Gigabit Ethernet, 4 x SFP+, 2 x QSFP+; Mounting: Rack-mounted.","Комутатор\n\nТехнічні вимоги:\nТип: Хмарний маршрутизатор-комутатор; Порти:48 x Gigabit Ethernet, 4 x SFP+, 2 x QSFP+; Монтаж: У стійку.",13,{"$nulls":3},{"v":0,"d":"0.00"},{"v":0,"d":"0.00"}]
[8,"Telecommunications Floor Cabinet:\n\nTechnical requirements:\nType: Floor-standing; Size: 46U, 800x1000 mm; Design: Perforated.","Телекомунікаційна підлогова шафа\n\nТехнічні вимоги:\nТип: Підлогова; Розмір: 46U, 800x1000 мм; Конструкція: Перфорована.",7,{"$nulls":3},{"v":0,"d":"0.00"},{"v":0,"d":"0.00"}]
[9,"Vehicle Police Action Recording Kit\n\nTechnical requirements:\nCameras: Front, rear; System Unit; Video Management System License; Wi-Fi Modem for Uploading Footage.\n\nVideo Manager System License should be understood as access to software for processing video information and possibly, if required and provided by the manufacturer, a license for the capability to process video information from the car video cameras that will be supplied within the project.","Комплект запису дій поліції транспортних засобів\n\nТехнічні вимоги:\nКамери: передня, задня; Системний блок; Ліцензія на систему керування відео; Wi-Fi модем для завантаження відеоматеріалів.\n\nЛіцензію на систему керування відео слід розуміти як доступ до програмного забезпечення для обробки відеоінформації та, можливо, якщо це вимагається та надається виробником, ліцензію на можливість обробки відеоінформації з автомобільних відеокамер, які будуть поставлені в рамках проекту.",45,{"$nulls":3},{"v":0,"d":"0.00"},{"v":0,"d":"0.00"}]
["Subtotal for LOT 2 | Проміжний підсумок ЛОТ 2",{"$nulls":7},{"$f":"SUM(I11:I21)","v":{"v":0,"d":"0.00"}}]
["LOT 3 (Домофонні пристрої) / ЛОТ 3 (Intercom Devices)"]
[1,"Intercom Device\n\nTechnical requirements:\nNumber of subscribers: 12;\nProduct type: Main station;\nConnection type: 2-wire;\nMaximum connection length: 1000 m;\nSpeakerphone: No;\nMounting: Surface-mounted;\nHousing material: Plastic;\nHousing color: White.","Домофонний пристрій\n\nТехнічні вимоги:\nКількість абонентів: 12;\nТип виробу: Головна станція;\nТип підключення: 2-дротове;\nМаксимальна довжина зв'язку: 1000 м;\nГучний зв'язок: Ні;\nМонтаж: Накладний;\nМатеріал корпуса: Пластик;\nКолір корпуса: білий.",20,{"$nulls":3},{"v":0,"d":"0.00"},{"$f":"D24*H24","v":{"v":0,"d":"0.00"}}]
["Subtotal for LOT 3 | Проміжний підсумок ЛОТ 3",{"$nulls":7},{"$f":"SUM(I30:I30)","v":{"v":0,"d":"0.00"}}]
["LOT 4 (Система IP-телефонії) / ЛОТ 4 (IP telephony system)"]
[1,"IP PBX\n\nTechnical requirements:\nNumber of FXO Ports: 1; Number of FXS Ports: 1; Concurrent Calls: 75; Maximum Number of Users: Up to 500.","IP АТС\n\nТехнічні вимоги:\nКількість портів FXO: 1; Кількість портів FXS: 1; Одночасні дзвінки: 75; Максимальна кількість користувачів: до 500.",10,{"$nulls":3},{"v":0,"d":"0.00"},{"$f":"D27*H27","v":{"v":0,"d":"0.00"}}]
[2,"IP Video Phone\n\nTechnical requirements:\nDisplay: Color touchscreen; SIP Accounts: At least 2; Camera: Built-in; Connectivity: Wi-Fi, Ethernet; PoE Support: 802.3af, PoE+ 802.3af; Direct Communication Consoles Support: At least two.","IP-відеотелефон\n\nТехнічні вимоги:\nДисплей: кольоровий сенсорний екран; Облікові записи SIP: щонайменше 2; Камера: Вбудована; Підключення: Wi-Fi, Ethernet; Підтримка PoE: 802.3af, PoE+ 802.3af; Підтримка консолей прямого зв'язку: щонайменше дві.",6,{"$nulls":3},{"v":0,"d":"0.00"},{"v":0,"d":"0.00"}]
[3,"IP Phone\n\nTechnical requirements:\nSIP Accounts: At least 2; Type: Hotel; PoE Support: 802.3af, PoE+ 802.3af; Color: Black.","IP-телефон\n\nТехнічні вимоги:\nОблікові записи SIP: щонайменше 2; Тип: готельний; підтримка PoE: 802.3af, PoE+ 802.3af; колір: чорний.",35,{"$nulls":3},{"v":0,"d":"0.00"},{"$f":"D29*H29","v":{"v":0,"d":"0.00"}}]
["Subtotal for LOT 4 | Проміжний підсумок ЛОТ 3",{"$nulls":7},{"$f":"SUM(I27:I29)","v":{"v":0,"d":"0.00"}}]
["Total amount VAT excl. |\nЗагальна сума без ПДВ",{"$nulls":7},{"$f":"I9+I22+I25+I30","v":{"v":0,"d":"0.00"}}]
[]
["Core note 1: Delivery destination - Kyiv region. The contractual delivery address will be provided to the successful bidder in the purchase order. /\nОсновна примітка 1: Місце доставки - Київська область. Контрактна адреса доставки буде надана переможцю тендеру в договорі про закупівлю.\n\nCore note 2: Fixed Price in GBP (the price should be calculated based on the exchange rate of GBP to UAH, according to the OANDA rate ( https://fxds-hcc.oanda.com/ ) on the Friday immediately preceding the date on which the invoice was issued). The exchange rate for this ITT as of the issue date - 56.7796 UAH./ \nОсновна примітка 2: Фіксована ціна у фунтах стерлінгів (ціна повинна бути розрахована на основі обмінного курсу фунта стерлінгів до гривні, згідно з курсом OANDA ( https://fxds-hcc.oanda.com/ ) у п'ятницю, що безпосередньо передує даті виставлення рахунку-фактури). Обмінний курс для цієї ІТТ на дату публікації - 56.7796 грн.\n\nGeneral notes: / Загальні примітки:\n1•\tAll Goods offered in response to this ITT must be new and unused. / \n1•\tУсі Товари, що пропонуються у відповідь на цю ITT, повинні бути новими та невикористаними.\n2•\tAll electrical Goods must operate on 240V, 50Hz.  [ignore if not applicable] / \n2•\tВсі електричні товари повинні працювати від мережі 240 В, 50 Гц.  [ігнорувати, якщо не застосовується]\n3•\tUnit prices must include applicable delivery/unloading costs and local taxes, excluding VAT.  / \n3•\tЦіни повинні включати відповідні витрати на доставку/розвантаження та місцеві податки, без урахування ПДВ. \n4•\tUnless otherwise indicated, stated brand names or models are for illustrative description only.  An equivalent substitute, as determined by the specifications, is acceptable. / \n4•\tЯкщо не вказано інше, зазначені торгові марки або моделі слугують лише для ілюстративного опису.  Допускається еквівалентна заміна, визначена технічними характеристиками.\n5•\tWarranty service and repair within the country of performance is required for all Goods under this ITT. The warranty coverage must be valid on all Goods for a minimum of twelve (12) months after delivery and acceptance of the Goods, unless otherwise specified in the technical specifications. / \n5•\tГарантійне обслуговування та ремонт у країні виконання робіт є обов'язковим для всіх Товарів за цією ІТТ. Гарантійне покриття має бути дійсним для всіх Товарів протягом щонайменше дванадцяти (12) місяців після доставки та приймання Товарів, якщо інше не зазначено в технічних специфікаціях."]
["Bidder to complete | Для заповненя постачальнику:"]
["Delivery Terms (INCOTERMS 2020): | \nУмови постачання (ІНКОТЕРМС 2020):",{"$nulls":6},"DDP Kyiv region | Київська область"]
["Payment terms (Chemonics requirement - 100% post-payment, NET within 30 c.d.): | \nУмови оплати (вимога Chemonics - 100% післяплата, NET протягом 30 к.д.):"]
["Bid validity (c.d.) | \nТермін дії пропозиції (к.д.)"]
["Bid currency: | \nВалюта пропозиції: ",{"$nulls":6},"GBP | Фунти Стерлінги"]
["Length of warranty on offered item:\nТермін дії гарантії на запропонований товар: \t\t "]
["Company name according to the Charter: | \nНазва компанії згідно Статуту:"]
["EDRPOU | ЄДРПОУ:"]
["Signature of the company representative and Stamp | \nПідпис представника підприємства та Печатка"]
["Date | Дата:"]
["Contact person of the company (whith role): | \nКонтактна особа компанії (із зазначенням посади):"]
["Mobile: | Мобільний:"]
["E-mail: |\nЕлектронна пошта:"]
["Після заповнення, вимога Chemonics - надати цей документ у підписаному/завіреному печаткою форматі PDF та Excel. |\nOnce completed, Chemonics requirement - provide this document in both signed/stamped PDF and Excel formats."]

{"sheet":"Sheet2","index":1,"n_rows":55,"n_cols":10,"rows_kept":55,"hidden":true,"merged":[[46,4,46,9],[51,4,51,9]]}
[]
[]
[{"$nulls":4},"x"]
[{"$nulls":3},150,19.420782939910104,null,19.42,null,{"$f":"D4*G4","v":{"v":2913.0000000000005,"d":"2,913.00"}}]
[{"$nulls":3},30,22.562751967112074,null,22.57,null,{"$f":"G5*D5","v":{"v":677.1,"d":"677.10"}}]
[{"$nulls":8},{"$f":"SUM(I4:I5)","v":{"v":3590.1000000000004,"d":"3,590.10"}}]
[{"$nulls":4},{"$f":"(D4*E4)+(D5*E5)","v":3589.999999999878}]
[]
[]
[]
[]
[]
[]
[{"$nulls":5},"Пропозиція по тендеру","Запропоновано","Ціна","Кількість","Сума"]
[{"$nulls":5},"ДСП Egger U 963 ST9 Діамант сірий (Антрацит) 2800х2070х25 мм Нарізані ДСП плити товщина 25 мл. Темно сірого або чорного кольору з матавим покриттям з кромкою чорного кольору.\nВисота 2700 см (з кромкою)\nШирина 30 см (з кромкою)","ДСП U963 ST9 Діамант сірий 2800х2070х25 мм EGGER (2024-26)\nВисота 2700 см (з кромкою)\nШирина 30 см (з кромкою)",22.57,{"v":30,"d":"30.00"},{"$f":"H15*I15","v":{"v":677.1,"d":"677.10"}}]
[{"$nulls":5},"ДСП Egger U 963 ST9 Діамант сірий (Антрацит) 2800х2070х25 мм Нарізані ДСП плити товщина 25 мл. Темно сірого або чорного кольору з матавим покриттям з кромкою чорного кольору. Довжина 900 см (з кромкою)\nШирина 30 см (без кромки)","ДСП U963 ST9 Діамант сірий 2800х2070х25 мм EGGER (2024-26)\nДовжина 900 см (з кромкою)\nШирина 30 см (без кромки)",19.42,{"v":150,"d":"150.00"},{"$f":"H16*I16","v":{"v":2913.0000000000005,"d":"2,913.00"}}]
[{"$nulls":9},{"$f":"SUM(J15:J16)","v":{"v":3590.1000000000004,"d":"3,590.10"}}]
{"$rows_empty":29}
[{"$nulls":4},"Before"]
[{"$nulls":5},"Description","UoM","Qty","Price","Amount"]
[{"$nulls":4},227,"Egger chipboard U 963 ST9 Diamond gray (Anthracite) 2800x2070x25 mm Sliced chipboard boards 25 ml thick. Dark gray or black with a matte finish with a black edge banding. Height 2700 mm (with edge banding) Width 300 mm (with edge banding)","sheet",14,188.3,{"$f":"H49*I49","v":{"v":2636.2000000000003,"d":"2,636.20"}}]
[{"$nulls":4},228,"Edge ABS U963 ST9 Diamond Gray 43*2 mm (75 m/p) EGGER Щ(2024-26)","linear meter",510,1.87,{"$f":"H50*I50","v":{"v":953.7,"d":"953.70"}}]
[{"$nulls":9},{"$f":"SUM(J49:J50)","v":{"v":3589.9000000000005,"d":"3,589.90"}}]
[{"$nulls":4},"Now"]
[{"$nulls":4},227,"Chipboard U963 ST9 Diamond gray 2800x2070x25 mm EGGER (2024-26) Height 2700 mm (with edge) Width 300 mm (with edge)","pcs",30,22.57,{"$f":"H53*I53","v":{"v":677.1,"d":"677.10"}}]
[{"$nulls":4},228,"Chipboard U963 ST9 Diamond gray 2800x2070x25 mm EGGER (2024-26) Length 900 mm (with edge banding) Width 300 mm (without edge banding)","pcs",150,19.41,{"$f":"H54*I54","v":{"v":2911.5,"d":"2,911.50"}}]
[{"$nulls":9},{"$f":"SUM(J53:J54)","v":{"v":3588.6,"d":"3,588.60"}}]

{"sheet":"Sheet1","index":2,"n_rows":6,"n_cols":8,"rows_kept":6,"hidden":true}
[]
[{"$nulls":4},"Плити мінераловатні ТЕХНОБЛОК СТАНДАРТ 1200*600*100мм (6 плит)",411,"м2","Високопілля, вул. Енергетична (Гагаріна), 7"]
[{"$nulls":4},"Утеплювач Техноблок Стандарт 1200х600х50мм (5,76/8пл) МП",186,"м2","Високопілля, вул. Енергетична (Гагаріна), 7"]
[{"$nulls":4},"Плити теплоізоляційні з минеральної вати на синтетичному зв'язуючому Izovat-LS(1000x600x100 мм)",33,"м2","Високопілля, вул. Енергетична (Гагаріна), 7"]
[{"$nulls":4},"Плити мінераловатні ТЕХНОБЛОК СТАНДАРТ 1200*600*100мм (6 плит)",250,"м2","Shkilna 104, Kalynivske village, 74131 , Beryslav district, Kherson Oblast \n(47.11839256223751, 32.982446441864816)"]
[{"$nulls":4},"Плити мінераловатні ТЕХНОБЛОК СТАНДАРТ 1200*600*100мм (6 плит)",300,"м2","Shkilna 120, Kalynivske village, 74131 , Beryslav district, Kherson Oblast (47.11650667082786, 32.97544873404343)"]